fUST/lending_fUST_20260118
["ID","MTS","AMOUNT","RATE_DAILY","PERIOD"]
[402437233,1768677082107,-504.64,0.00017534,3]
[402437234,1768677082117,-500.0,0.00017534,3]
[402437235,1768677082127,-500.0,0.00017534,3]
[402437236,1768677082137,-500.0,0.00017534,3]
[402437237,1768677082147,-741.79,0.00017534,3]
[402437238,1768677082156,-500.0,0.00017534,3]
[402437239,1768677082167,-709.42,0.00017534,3]
[402437240,1768677082176,-500.0,0.00017534,3]
[402437241,1768677082187,-500.0,0.00017534,3]
[402437242,1768677082197,-364.13507716,0.00017534,3]
[402437243,1768677082207,-500.0,0.00017534,3]
[402437244,1768677082217,-1957.51,0.00017534,3]
[402437245,1768677082227,-500.0,0.00017534,3]
[402437246,1768677082238,-1860.69,0.00017534,3]
[402437247,1768677082247,-627.94,0.00017534,3]
[402437248,1768677082259,-762.35,0.00017534,3]
[402437249,1768677082270,-500.0,0.00017534,3]
[402437250,1768677082279,-500.0,0.00017534,3]
[402437251,1768677082289,-500.0,0.00017534,3]
[402437252,1768677082300,-500.0,0.00017534,3]
[402437253,1768677082310,-505.92,0.00017534,3]
[402437254,1768677082319,-898.93,0.00017534,3]
[402437255,1768677082332,-500.0,0.00017534,3]
[402437256,1768677082342,-545.77,0.00017534,3]
[402437257,1768677082352,-500.0,0.00017534,3]
[402437258,1768677082362,-1944.24,0.00017534,3]
[402437259,1768677082371,-500.0,0.00017534,3]
[402437260,1768677082381,-500.0,0.00017534,3]
[402437261,1768677082391,-500.0,0.00017534,3]
[402437262,1768677082401,-1502.15,0.00017534,3]
[402437263,1768677082411,-500.0,0.00017534,3]
[402437264,1768677082421,-1665.75,0.00017534,3]
[402437265,1768677082430,-500.0,0.00017534,3]
[402437266,1768677082439,-500.0,0.00017534,3]
[402437267,1768677082449,-1236.21,0.00017534,3]
[402437268,1768677082458,-624.16,0.00017534,3]
[402437269,1768677082468,-2175.59,0.00017534,3]
[402437270,1768677082477,-500.0,0.00017534,3]
[402437271,1768677082487,-500.0,0.00017534,3]
[402437272,1768677082497,-500.0,0.00017534,3]
[402437273,1768677082507,-500.0,0.00017534,3]
[402437274,1768677082516,-500.0,0.00017534,3]
[402437275,1768677082525,-500.0,0.00017534,3]
[402437276,1768677082535,-700.37,0.00017534,3]
[402437277,1768677082545,-500.0,0.00017534,3]
[402437278,1768677082555,-500.0,0.00017534,3]
[402437279,1768677082565,-500.0,0.00017534,3]
[402437280,1768677082575,-500.0,0.00017534,3]
[402437281,1768677082584,-500.0,0.00017534,3]
[402437282,1768677082594,-2551.07,0.00017534,3]
[402437283,1768677082604,-500.0,0.00017534,3]
[402437284,1768677082615,-500.0,0.00017534,3]
[402437285,1768677082624,-500.0,0.00017534,3]
[402437286,1768677082634,-500.0,0.00017534,3]
[402437287,1768677082643,-1022.84,0.00017534,3]
[402437288,1768677082653,-500.0,0.00017534,3]
[402437289,1768677082663,-500.0,0.00017534,3]
[402437290,1768677082672,-1319.94,0.00017534,3]
[402437291,1768677082681,-500.0,0.00017534,3]
[402437292,1768677082691,-503.64,0.00017534,3]
[402437293,1768677082699,-813.92,0.00017534,3]
[402437294,1768677082708,-861.36,0.00017534,3]
[402437295,1768677082718,-806.92,0.00017534,3]
[402437296,1768677082727,-500.0,0.00017534,3]
[402437297,1768677082737,-748.9,0.00017534,3]
[402437298,1768677082747,-2453.42,0.00017534,3]
[402437299,1768677082757,-590.49,0.00017534,3]
[402437300,1768677082766,-500.0,0.00017534,3]
[402437301,1768677082776,-500.0,0.00017534,3]
[402437302,1768677082785,-1552.9,0.00017534,3]
[402437303,1768677082795,-1695.64,0.00017534,3]
[402437304,1768677082804,-561.4,0.00017534,3]
[402437305,1768677082814,-568.07228824,0.00017534,3]
[402437306,1768677082824,-500.0,0.00017534,3]
[402437307,1768677082833,-1568.81,0.00017534,3]
[402437308,1768677082843,-1121.41,0.00017534,3]
[402437309,1768677082853,-543.12,0.00017534,3]
[402437310,1768677082862,-1094.15,0.00017534,3]
[402437311,1768677082872,-758.46,0.00017534,3]
[402437312,1768677082882,-500.0,0.00017534,3]
[402437313,1768677082891,-500.0,0.00017534,3]
[402437314,1768677082900,-1285.11,0.00017534,3]
[402437315,1768677082911,-917.14,0.00017534,3]
[402437316,1768677082921,-500.0,0.00017534,3]
[402437317,1768677082930,-948.88,0.00017534,3]
[402437318,1768677082940,-500.0,0.00017534,3]
[402437319,1768677082951,-500.0,0.00017534,3]
[402437320,1768677082963,-714.16,0.00017534,3]
[402437321,1768677082972,-520.72,0.00017534,3]
[402437322,1768677082983,-1173.22,0.00017534,3]
[402437323,1768677082992,-660.42,0.00017534,3]
[402437324,1768677083002,-500.0,0.00017534,3]
[402437325,1768677083011,-500.0,0.00017534,3]
[402437326,1768677083021,-634.82538104,0.00017534,3]
[402437327,1768677083030,-798.37,0.00017534,3]
[402437328,1768677083040,-876.59,0.00017534,3]
[402437329,1768677083050,-500.0,0.00017534,3]
[402437330,1768677083059,-500.0,0.00017534,3]
[402437331,1768677083070,-509.49,0.00017534,3]
[402437332,1768677083079,-500.0,0.00017534,3]
[402437333,1768677083089,-500.0,0.00017534,3]
[402437334,1768677083099,-500.0,0.00017534,3]
[402437335,1768677083108,-2552.27,0.00017534,3]
[402437336,1768677083117,-500.0,0.00017534,3]
[402437337,1768677083126,-609.02,0.00017534,3]
[402437338,1768677083135,-1639.55,0.00017534,3]
[402437339,1768677083143,-844.39,0.00017534,3]
[402437340,1768677083153,-548.99,0.00017534,3]
[402437341,1768677083163,-578.12,0.00017534,3]
[402437342,1768677083172,-500.0,0.00017534,3]
[402437343,1768677083182,-500.0,0.00017534,3]
[402437344,1768677083192,-1023.93,0.00017534,3]
[402437345,1768677083202,-500.0,0.00017534,3]
[402437346,1768677083212,-500.0,0.00017534,3]
[402437347,1768677083221,-1911.06,0.00017534,3]
[402437348,1768677083231,-500.0,0.00017534,3]
[402437349,1768677083241,-500.0,0.00017534,3]
[402437350,1768677083252,-500.0,0.00017534,3]
[402437351,1768677083265,-260.63382945,0.00017534,3]
[402437352,1768677083277,-936.53,0.00017534,3]
[402437353,1768677083286,-1025.38,0.00017534,3]
[402437354,1768677083296,-500.0,0.00017534,3]
[402437355,1768677083307,-575.62,0.00017534,3]
[402437356,1768677083316,-1305.86,0.00017534,3]
[402437357,1768677083327,-500.0,0.00017534,3]
[402437358,1768677083338,-500.0,0.00017534,3]
[402437359,1768677083349,-1103.35,0.00017534,3]
[402437360,1768677083358,-3403.79,0.00017534,3]
[402437361,1768677083367,-500.0,0.00017534,3]
[402437362,1768677083377,-978.92,0.00017534,3]
[402437363,1768677083387,-500.0,0.00017534,3]
[402437364,1768677083396,-1480.53,0.00017534,3]
[402437365,1768677083406,-552.87,0.00017534,3]
[402437366,1768677083415,-500.0,0.00017534,3]
[402437367,1768677083425,-500.0,0.00017534,3]
[402437368,1768677083435,-545.24616728,0.00017534,3]
[402437369,1768677083445,-860.55,0.00017534,3]
[402437370,1768677083456,-598.38,0.00017534,3]
[402437371,1768677083466,-1148.17,0.00017534,3]
[402437372,1768677083477,-2015.39,0.00017534,3]
[402437373,1768677083487,-500.0,0.00017534,3]
[402437374,1768677083497,-674.52,0.00017534,3]
[402437375,1768677083507,-636.57,0.00017534,3]
[402437376,1768677083517,-1399.24,0.00017534,3]
[402437377,1768677083526,-1168.23,0.00017534,3]
[402437378,1768677083537,-500.0,0.00017534,3]
[402437379,1768677083546,-1114.84,0.00017534,3]
[402437380,1768677083557,-2897.63,0.00017534,3]
[402437381,1768677083567,-1569.6,0.00017534,3]
[402437382,1768677083577,-597.82,0.00017534,3]
[402437383,1768677083587,-644.89,0.00017534,3]
[402437384,1768677083597,-352.98387266,0.00017534,3]
[402437385,1768677083607,-500.0,0.00017534,3]
[402437386,1768677083618,-1380.77,0.00017534,3]
[402437387,1768677083628,-539.32,0.00017534,3]
[402437388,1768677083638,-1474.73,0.00017534,3]
[402437389,1768677083648,-500.0,0.00017534,2]
[402437390,1768677083861,-1321.15,0.00017534,3]
[402437391,1768677083871,-500.0,0.00017534,3]
[402437392,1768677083882,-539.86,0.00017534,3]
[402437393,1768677083891,-537.6,0.00017534,3]
[402437394,1768677083901,-500.0,0.00017534,3]
[402437395,1768677083910,-500.0,0.00017534,3]
[402437396,1768677083920,-1249.71,0.00017534,3]
[402437397,1768677083930,-500.0,0.00017534,3]
[402437398,1768677083940,-500.0,0.00017534,3]
[402437399,1768677083950,-500.0,0.00017534,3]
[402437400,1768677083961,-1505.84,0.00017534,3]
[402437401,1768677083972,-500.0,0.00017534,3]
[402437402,1768677083982,-500.0,0.00017534,2]
[402437403,1768677083992,-14376.21,0.00017534,3]
[402437404,1768677084002,-795.91,0.00017534,3]
[402437405,1768677084011,-500.0,0.00017534,2]
[402437406,1768677084021,-500.0,0.00017534,2]
[402437407,1768677084030,-733.0,0.00017536,2]
[402437408,1768677084040,-518.6370129,0.00017538,2]
[402437409,1768677084049,-2138.33066815,0.000176,2]
[402437410,1768677084071,-549.58,0.0001762,2]
[402437411,1768677084091,-21248.2439479,0.00017637,2]
[402437412,1768677084111,-514.84070869,0.00017657,2]
[402437413,1768677084122,-34692.55458483,0.00017657,2]
[402437414,1768677084132,-2487.15318209,0.00017657,2]
[402437415,1768677084142,-668.324163,0.00017669,7]
[402437416,1768677084152,-377.8688684,0.00017671,2]
[402437417,1768677084161,-160.44779279,0.00017677,2]
[402437418,1768677084172,-500.0,0.00017682,2]
[402437419,1768677084182,-500.0,0.00017682,2]
[402437420,1768677084191,-500.0,0.00017718,2]
[402437421,1768677084201,-3000.0,0.00017798,7]
[402437422,1768677084211,-27378.95688365,0.000178,3]
[402437423,1768677084220,-166.0,0.00017806,2]
[402437424,1768677084230,-166.0,0.00017806,2]
[402437425,1768677084239,-166.0,0.00017806,2]
[402437426,1768677084248,-166.0,0.00017806,2]
[402437427,1768677084260,-166.0,0.00017806,2]
[402437428,1768677084268,-166.0,0.00017806,2]
[402437429,1768677084277,-166.0,0.00017806,2]
[402437430,1768677084286,-172.0,0.00017806,2]
[402437431,1768677084297,-166.0,0.00017806,2]
[402437432,1768677084307,-156.35103018,0.00017806,2]
[402437433,1768677084316,-172.0,0.00017806,2]
[402437434,1768677084323,-348.0,0.00017806,2]
[402437435,1768677084335,-348.0,0.00017806,2]
[402437436,1768677084344,-348.0,0.00017806,2]
[402437437,1768677084353,-151.0,0.00017806,2]
[402437438,1768677084363,-348.0,0.00017806,2]
[402437439,1768677084374,-151.0,0.00017806,2]
[402437440,1768677084384,-348.0,0.00017806,2]
[402437441,1768677084393,-151.0,0.00017806,2]
[402437442,1768677084403,-348.0,0.00017806,2]
[402437443,1768677084412,-151.0,0.00017806,2]
[402437444,1768677084422,-151.0,0.00017806,2]
[402437445,1768677084431,-348.0,0.00017806,2]
[402437446,1768677084441,-152.0,0.00017806,2]
[402437447,1768677084450,-151.0,0.00017806,2]
[402437448,1768677084460,-348.0,0.00017806,2]
[402437449,1768677084469,-152.0,0.00017806,2]
[402437450,1768677084478,-348.0,0.00017806,2]
[402437451,1768677084488,-152.0,0.00017806,2]
[402437452,1768677084498,-151.0,0.00017806,2]
[402437453,1768677084508,-348.0,0.00017806,2]
[402437454,1768677084517,-152.0,0.00017806,2]
[402437455,1768677084526,-151.0,0.00017806,2]
[402437456,1768677084535,-152.0,0.00017806,2]
[402437457,1768677084543,-151.0,0.00017806,2]
[402437458,1768677084551,-152.0,0.00017806,2]
[402437459,1768677084561,-151.0,0.00017806,2]
[402437460,1768677084570,-151.0,0.00017806,2]
[402437461,1768677084580,-151.0,0.00017806,2]
[402437462,1768677084589,-151.0,0.00017806,2]
[402437463,1768677084598,-348.0,0.00017806,2]
[402437464,1768677084607,-348.0,0.00017806,2]
[402437465,1768677084617,-151.0,0.00017806,2]
[402437466,1768677084626,-348.0,0.00017806,2]
[402437467,1768677084636,-151.0,0.00017806,2]
[402437468,1768677084645,-348.0,0.00017806,2]
[402437469,1768677084655,-151.0,0.00017806,2]
[402437470,1768677084664,-348.0,0.00017806,2]
[402437471,1768677084674,-151.0,0.00017806,2]
[402437472,1768677084683,-348.0,0.00017806,2]
[402437473,1768677084692,-151.41001683,0.00017806,2]
[402437474,1768677084702,-348.0,0.00017806,2]
[402437475,1768677084711,-348.0,0.00017806,2]
[402437476,1768677084720,-348.0,0.00017806,2]
[402437477,1768677084730,-348.0,0.00017806,2]
[402437478,1768677084739,-348.0,0.00017806,2]
[402437479,1768677084750,-348.0,0.00017806,2]
[402437480,1768677084759,-348.0,0.00017806,2]
[402437481,1768677084770,-348.0,0.00017806,2]
[402437482,1768677084779,-348.0,0.00017806,2]
[402437483,1768677084788,-348.0,0.00017806,2]
[402437484,1768677084798,-348.0,0.00017806,2]
[402437485,1768677084807,-348.0,0.00017806,2]
[402437486,1768677084817,-348.0,0.00017806,2]
[402437487,1768677084827,-348.0,0.00017806,2]
[402437488,1768677084836,-348.0,0.00017806,2]
[402437489,1768677084845,-348.0,0.00017806,2]
[402437490,1768677084855,-348.0,0.00017806,2]
[402437491,1768677084865,-348.0,0.00017806,2]
[402437492,1768677084874,-348.0,0.00017806,2]
[402437493,1768677084883,-348.0,0.00017806,2]
[402437494,1768677084893,-348.0,0.00017806,2]
[402437495,1768677084904,-348.0,0.00017806,2]
[402437496,1768677084915,-348.0,0.00017806,2]
[402437497,1768677084924,-348.0,0.00017806,2]
[402437498,1768677084933,-348.0,0.00017806,2]
[402437499,1768677084942,-348.0,0.00017806,2]
[402437500,1768677084952,-348.0,0.00017806,2]
[402437501,1768677084961,-348.0,0.00017806,2]
[402437502,1768677084971,-348.0,0.00017806,2]
[402437503,1768677084980,-348.0,0.00017806,2]
[402437504,1768677084989,-348.0,0.00017806,2]
[402437505,1768677084999,-348.0,0.00017806,2]
[402437506,1768677085009,-348.0,0.00017806,2]
[402437507,1768677085019,-348.0,0.00017806,2]
[402437508,1768677085029,-348.0,0.00017806,2]
[402437509,1768677085039,-348.0,0.00017806,2]
[402437510,1768677085049,-348.0,0.00017806,2]
[402437511,1768677085059,-348.0,0.00017806,2]
[402437512,1768677085069,-348.0,0.00017806,2]
[402437513,1768677085078,-348.0,0.00017806,2]
[402437514,1768677085087,-348.0,0.00017806,2]
[402437515,1768677085097,-348.0,0.00017806,2]
[402437516,1768677085106,-348.0,0.00017806,2]
[402437517,1768677085116,-348.0,0.00017806,2]
[402437518,1768677085126,-348.0,0.00017806,2]
[402437519,1768677085135,-348.0,0.00017806,2]
[402437520,1768677085145,-348.0,0.00017806,2]
[402437521,1768677085154,-348.0,0.00017806,2]
[402437522,1768677085164,-348.0,0.00017806,2]
[402437523,1768677085175,-348.0,0.00017806,2]
[402437524,1768677085194,-277.2433497,0.00017806,2]
[402437525,1768677085204,-674.95746037,0.00017808,3]
[402437526,1768677085213,-500.0,0.00017808,3]
[402437527,1768677085223,-500.0,0.00017808,3]
[402437528,1768677085233,-500.0,0.00017808,3]
[402437529,1768677085242,-500.0,0.00017808,3]
[402437530,1768677085252,-500.0,0.00017808,3]
[402437531,1768677085265,-500.0,0.00017808,3]
[402437532,1768677085275,-500.0,0.00017808,3]
[402437533,1768677085283,-500.0,0.00017808,3]
[402437534,1768677085294,-500.0,0.00017808,3]
[402437535,1768677085303,-500.0,0.00017808,3]
[402437536,1768677085313,-500.0,0.00017808,3]
[402437537,1768677085322,-500.0,0.00017808,3]
[402437538,1768677085333,-819.06,0.00017808,3]
[402437539,1768677085342,-1100.98,0.00017808,3]
[402437540,1768677085352,-227.26017187,0.00017808,3]
[402437541,1768677085361,-500.0,0.00017808,3]
[402437542,1768677085371,-1054.14,0.00017808,3]
[402437543,1768677085392,-500.0,0.00017808,3]
[402437544,1768677085403,-500.0,0.00017808,3]
[402437545,1768677085413,-500.0,0.00017808,3]
[402437546,1768677085422,-756.12,0.00017808,3]
[402437547,1768677085432,-500.0,0.00017808,3]
[402437548,1768677085442,-500.0,0.00017808,3]
[402437549,1768677085451,-500.0,0.00017808,3]
[402437550,1768677085461,-654.72,0.00017808,3]
[402437551,1768677085470,-541.19,0.00017808,3]
[402437552,1768677085481,-995.34,0.00017808,3]
[402437553,1768677085491,-500.0,0.00017808,3]
[402437554,1768677085501,-500.0,0.00017808,3]
[402437555,1768677085510,-1414.85,0.00017808,3]
[402437556,1768677085521,-500.0,0.00017808,3]
[402437557,1768677085532,-500.0,0.00017808,3]
[402437558,1768677085542,-500.0,0.00017808,3]
[402437559,1768677085552,-500.0,0.00017808,3]
[402437560,1768677085562,-500.0,0.00017808,3]
[402437561,1768677085572,-500.0,0.00017808,3]
[402437562,1768677085582,-500.0,0.00017808,3]
[402437563,1768677085592,-500.0,0.00017808,3]
[402437564,1768677085601,-500.0,0.00017808,3]
[402437565,1768677085611,-619.42,0.00017808,3]
[402437566,1768677085620,-500.0,0.00017808,3]
[402437567,1768677085629,-500.0,0.00017808,3]
[402437568,1768677085640,-500.0,0.00017808,3]
[402437569,1768677085650,-505.08,0.00017808,3]
[402437570,1768677085660,-500.0,0.00017808,3]
[402437571,1768677085669,-500.0,0.00017808,3]
[402437572,1768677085679,-500.0,0.00017808,3]
[402437573,1768677085688,-530.75,0.00017808,3]
[402437574,1768677085698,-814.58,0.00017808,3]
[402437575,1768677085708,-500.0,0.00017808,3]
[402437576,1768677085717,-1103.53,0.00017808,3]
[402437577,1768677085727,-863.13,0.00017808,3]
[402437578,1768677085737,-500.0,0.00017808,3]
[402437579,1768677085749,-426.38732043,0.00017808,3]
[402437580,1768677085759,-524.22048595,0.00017808,3]
[402437581,1768677085770,-500.0,0.00017808,3]
[402437582,1768677085780,-688.71,0.00017808,3]
[402437583,1768677085790,-500.0,0.00017808,3]
[402437584,1768677085799,-653.28,0.00017808,3]
[402437585,1768677085810,-500.0,0.00017808,3]
[402437586,1768677085821,-500.0,0.00017808,3]
[402437587,1768677085831,-526.42,0.00017808,3]
[402437588,1768677085841,-500.0,0.00017808,3]
[402437589,1768677085852,-500.0,0.00017808,3]
[402437590,1768677085863,-821.72,0.00017808,3]
[402437591,1768677085874,-500.0,0.00017808,3]
[402437592,1768677085884,-1355.32,0.00017808,3]
[402437593,1768677085893,-500.0,0.00017808,3]
[402437594,1768677085903,-500.0,0.00017808,3]
[402437595,1768677085913,-526.18,0.00017808,3]
[402437596,1768677085923,-347.44370923,0.00017808,3]
[402437597,1768677085933,-859.78,0.00017808,3]
[402437598,1768677085943,-500.0,0.00017808,3]
[402437599,1768677085953,-500.0,0.00017808,3]
[402437600,1768677085962,-500.0,0.00017808,3]
[402437601,1768677085971,-500.0,0.00017808,3]
[402437602,1768677085980,-500.0,0.00017808,3]
[402437603,1768677085989,-500.0,0.00017808,3]
[402437604,1768677085999,-796.76,0.00017808,3]
[402437605,1768677086008,-947.02,0.00017808,3]
[402437606,1768677086018,-500.0,0.00017808,3]
[402437607,1768677086027,-272.37095351,0.00017808,3]
[402437608,1768677086036,-500.0,0.00017808,3]
[402437609,1768677086047,-1676.18,0.00017808,3]
[402437610,1768677086057,-500.0,0.00017808,3]
[402437611,1768677086068,-500.0,0.00017808,3]
[402437612,1768677086077,-1422.11,0.00017808,3]
[402437613,1768677086087,-700.16,0.00017808,3]
[402437614,1768677086096,-500.0,0.00017808,3]
[402437615,1768677086105,-1271.86,0.00017808,3]
[402437616,1768677086114,-500.0,0.00017808,3]
[402437617,1768677086123,-500.0,0.00017808,3]
[402437618,1768677086133,-555.26,0.00017808,3]
[402437619,1768677086143,-1185.41,0.00017808,3]
[402437620,1768677086152,-972.25,0.00017808,3]
[402437621,1768677086161,-500.0,0.00017808,3]
[402437622,1768677086170,-500.0,0.00017808,3]
[402437623,1768677086179,-500.0,0.00017808,3]
[402437624,1768677086189,-1029.8,0.00017808,3]
[402437625,1768677086199,-500.0,0.00017808,3]
[402437626,1768677086208,-500.0,0.00017808,3]
[402437627,1768677086217,-1204.44,0.00017808,3]
[402437628,1768677086226,-500.0,0.00017808,3]
[402437629,1768677086235,-500.0,0.00017808,3]
[402437630,1768677086244,-778.71,0.00017808,3]
[402437631,1768677086254,-1032.1,0.00017808,3]
[402437632,1768677086266,-500.0,0.00017808,3]
[402437633,1768677086275,-156.77330136,0.00017808,2]
[402437634,1768677086284,-500.0,0.00017808,3]
[402437635,1768677086293,-275.02958199,0.00017808,3]
[402437636,1768677086305,-500.0,0.00017808,3]
[402437637,1768677086314,-500.0,0.00017808,3]
[402437638,1768677086324,-862.94,0.00017808,3]
[402437639,1768677086334,-500.0,0.00017808,3]
[402437640,1768677086343,-500.0,0.00017808,3]
[402437641,1768677086352,-500.0,0.00017808,3]
[402437642,1768677086361,-824.42,0.00017808,3]
[402437643,1768677086370,-228.06287454,0.00017808,3]
[402437644,1768677086379,-972.71,0.00017808,3]
[402437645,1768677086388,-505.28,0.00017808,3]
[402437646,1768677086397,-500.0,0.00017808,3]
[402437647,1768677086406,-676.38,0.00017808,3]
[402437648,1768677086415,-500.0,0.00017808,3]
[402437649,1768677086424,-500.0,0.00017808,3]
[402437650,1768677086433,-500.0,0.00017808,3]
[402437651,1768677086443,-309.63209923,0.00017808,3]
[402437652,1768677086452,-718.46,0.00017808,3]
[402437653,1768677086462,-500.0,0.00017808,3]
[402437654,1768677086471,-500.0,0.00017808,3]
[402437655,1768677086482,-795.48,0.00017808,3]
[402437656,1768677086492,-500.0,0.00017808,3]
[402437657,1768677086502,-500.0,0.00017808,3]
[402437658,1768677086511,-1494.36,0.00017808,3]
[402437659,1768677086520,-500.0,0.00017808,3]
[402437660,1768677086529,-527.51,0.00017808,3]
[402437661,1768677086538,-1636.62,0.00017808,3]
[402437662,1768677086546,-500.0,0.00017808,3]
[402437663,1768677086555,-500.0,0.00017808,3]
[402437664,1768677086565,-500.0,0.00017808,3]
[402437665,1768677086574,-955.79,0.00017808,3]
[402437666,1768677086582,-580.87,0.00017808,3]
[402437667,1768677086590,-752.06,0.00017808,3]
[402437668,1768677086599,-500.0,0.00017808,3]
[402437669,1768677086608,-905.51,0.00017808,3]
[402437670,1768677086617,-500.0,0.00017808,3]
[402437671,1768677086626,-1208.54,0.00017808,3]
[402437672,1768677086635,-1438.2,0.00017808,3]
[402437673,1768677086644,-1688.51,0.00017808,3]
[402437674,1768677086653,-500.0,0.00017808,3]
[402437675,1768677086663,-932.73,0.00017808,3]
[402437676,1768677086671,-500.0,0.00017808,3]
[402437677,1768677086680,-706.53,0.00017808,3]
[402437678,1768677086689,-500.0,0.00017808,3]
[402437679,1768677086698,-947.08,0.00017808,3]
[402437680,1768677086707,-1057.27,0.00017808,3]
[402437681,1768677086716,-2004.45,0.00017808,3]
[402437682,1768677086725,-500.0,0.00017808,3]
[402437683,1768677086735,-311.24128532,0.00017808,3]
[402437684,1768677086744,-688.08,0.00017808,3]
[402437685,1768677086753,-500.0,0.00017808,3]
[402437686,1768677086762,-500.0,0.00017808,3]
[402437687,1768677086771,-500.0,0.00017808,3]
[402437688,1768677086780,-648.33,0.00017808,3]
[402437689,1768677086789,-500.0,0.00017808,3]
[402437690,1768677086799,-1181.35,0.00017808,3]
[402437691,1768677086807,-500.0,0.00017808,3]
[402437692,1768677086817,-500.0,0.00017808,3]
[402437693,1768677086826,-500.0,0.00017808,3]
[402437694,1768677086834,-500.0,0.00017808,3]
[402437695,1768677087056,-950.08,0.00017808,3]
[402437696,1768677087066,-500.0,0.00017808,3]
[402437697,1768677087077,-500.0,0.00017808,3]
[402437698,1768677087086,-500.0,0.00017808,3]
[402437699,1768677087096,-1477.98,0.00017808,3]
[402437700,1768677087105,-1122.16,0.00017808,3]
[402437701,1768677087115,-1022.4,0.00017808,3]
[402437702,1768677087126,-310.90446794,0.00017808,3]
[402437703,1768677087135,-500.0,0.00017808,3]
[402437704,1768677087146,-500.0,0.00017808,3]
[402437705,1768677087155,-500.0,0.00017808,3]
[402437706,1768677087165,-500.0,0.00017808,3]
[402437707,1768677087175,-1748.87,0.00017808,3]
[402437708,1768677087184,-506.9,0.00017808,3]
[402437709,1768677087195,-500.0,0.00017808,3]
[402437710,1768677087204,-634.5,0.00017808,3]
[402437711,1768677087214,-1501.65,0.00017808,3]
[402437712,1768677087224,-1015.88,0.00017808,3]
[402437713,1768677087234,-966.6,0.00017808,3]
[402437714,1768677087244,-500.0,0.00017808,3]
[402437715,1768677087254,-531.86,0.00017808,3]
[402437716,1768677087267,-500.0,0.00017808,3]
[402437717,1768677087277,-500.0,0.00017808,3]
[402437718,1768677087287,-770.84,0.00017808,3]
[402437719,1768677087297,-1392.58,0.00017808,3]
[402437720,1768677087307,-500.0,0.00017808,3]
[402437721,1768677087316,-500.0,0.00017808,3]
[402437722,1768677087326,-1290.77,0.00017808,3]
[402437723,1768677087335,-500.0,0.00017808,3]
[402437724,1768677087345,-500.0,0.00017808,3]
[402437725,1768677087355,-1293.8,0.00017808,3]
[402437726,1768677087365,-1240.0,0.00017808,3]
[402437727,1768677087374,-500.0,0.00017808,3]
[402437728,1768677087384,-500.0,0.00017808,3]
[402437729,1768677087394,-942.26,0.00017808,3]
[402437730,1768677087403,-500.0,0.00017808,3]
[402437731,1768677087413,-680.81,0.00017808,3]
[402437732,1768677087423,-863.4,0.00017808,3]